Cogmind - Beta 17 @@@ ROGUE MODE // 2026.06.27 @ 22:38:02 Player: goobie Result: Destroyed by H2-5QH(j) with Overtuned Pulse Rifle Performance ------------- Evolutions (0) 0 Regions Visited (3) 600 Robots Destroyed (6) 30 Value Destroyed (100) 100 Prototype IDs (0) 0 Alien Tech Used (0) 0 Bonus (0) 0 TOTAL SCORE: 730 Bonus ------- None Cogmind --------- Core Integrity 0/250 Matter 236/300 Energy 67/100 System Corruption 0% Temperature Cool (31) Movement Treading (160) Location -8/Recycling Parts ------- > --- POWER (1) -------- (None) > --- PROPULSION (2) --- Light Treads Light Treads > --- UTILITY (2) ------ Small Storage Unit > --- WEAPON (2) ------- Battle Cannon Assault Cannon > --- INVENTORY (8) ---- Aluminum Leg Scrap Engine Assault Rifle Peak State ------------ > --- POWER ------------ Nuclear Core > --- PROPULSION ------- Aluminum Leg Aluminum Leg > --- UTILITY ---------- Small Storage Unit High-powered Tractor Beam > --- WEAPON ----------- EM Pulse Gun Light Assault Rifle > --- INVENTORY -------- Light Treads Light Treads Scrap Engine Assault Rifle Battle Cannon Assault Cannon [Rating: 13] Favorites ----------- Power Light Ion Engine Engine Light Ion Engine Power Core Nuclear Core Propulsion Aluminum Leg Treads Light Treads Leg Aluminum Leg Utility Small Storage Unit Device High-powered Tractor Beam Storage Small Storage Unit Weapon EM Pulse Gun Energy Gun EM Pulse Gun Ballistic Gun Light Assault Rifle Ballistic Cannon Battle Cannon Build | -11 -10 -10 -8 ------- Run | Yrd Mat Sub Rec Slots Evolved . | . . . . Power . | . . . . Propulsion . | . . . . Utility . | . . . . Weapon . | . . . . Parts Attached 15 | 7 . 4 4 Power 3 | 1 . 1 1 Engine 2 | 1 . 1 . Core 1 | . . . 1 Reactor . | . . . . Propulsion 4 | 3 . 1 . Treads 2 | 1 . 1 . Leg 2 | 2 . . . Wheel . | . . . . Hover . | . . . . Flight . | . . . . Utility 2 | 1 . . 1 Device 1 | . . . 1 Storage 1 | 1 . . . Processor . | . . . . Hackware . | . . . . Protection . | . . . . Artifact . | . . . . Weapon 6 | 2 . 2 2 Energy Gun 1 | 1 . . . Energy Cannon . | . . . . Ballistic Gun 3 | 1 . 1 1 Ballistic Cannon 2 | . . 1 1 Launcher . | . . . . Special Weapon . | . . . . Impact Weapon . | . . . . Slashing Weapon . | . . . . Piercing Weapon . | . . . . Special Melee Weapon . | . . . . Unidentified Prototypes . | . . . . Parts Lost 8 | . . 3 5 Power 3 | . . 2 1 Propulsion 1 | . . . 1 Utility 1 | . . . 1 Weapon 3 | . . 1 2 Highest Loss Streak 5 | . . 2 5 To Critical Strikes . | . . . . Average Backups 4 | 3 3 4 4 Power . | . . . . Propulsion 1 | 1 2 2 1 Utility . | . . . . Weapon 2 | 1 1 2 2 Tool/Special . | . . . . Unused Backups 1 | . . . 1 Power . | . . . . Propulsion . | . . . . Utility 1 | . . . 1 Weapon . | . . . . Tool/Special . | . . . . Average Slot Usage (%) 80 | . 85 81 77 Engine 6 | . 14 10 . Core 2 | . . . 5 Treads 4 | . . 8 3 Leg 22 | . 28 19 23 Device 1 | . . . 4 Storage 14 | . 14 14 14 Energy Gun 13 | . 14 14 13 Ballistic Gun 11 | . 14 12 11 Peak Build Rating 13 | 6 6 8 13 Average Rating 6 | 3 6 6 7 On Entrance 4 | . 6 6 4 Avg Prop Armor Cover (%) 21 | 21 . . . Naked Turns . | . . . . Heaviest Build 16 | 12 12 14 16 Greatest Support 40 | 20 20 40 40 Greatest Overweight (x) 1 | . . . 1 Average Overweight (x) . | . . . . Largest Inventory Capacity 8 | 8 8 8 8 Average Capacity 7 | 6 8 8 8 Most Carried 7 | 5 3 6 7 Average Carried 4 | 3 3 4 4 Final Capacity 8 | 8 8 8 8 Final Carried 5 | 3 3 5 4 Class Distribution -------------------- 100% | Mutant Dominant Class ---------------- Mutant | -10/Materials Mutant | -10/Subcaves Mutant | -8/Recycling Resources | -11 -10 -10 -8 ----------- Run | Yrd Mat Sub Rec Matter Collected 405 | 191 . 45 169 Remotely . | . . . . Salvage Created 70 | . . 70 . Parts 6 | . . 6 . Haulers Intercepted . | . . . . Recyclers Shooed . | . . . . Parts Field Recycled . | . . . . Retrieved Matter . | . . . . Parts Self-Destructed 4 | . . 4 . Prevented . | . . . . Parts Restored . | . . . . Kills | -11 -10 -10 -8 ------- Run | Yrd Mat Sub Rec Combat Hostiles Destroyed 4 | . . 4 . Guns 1 | . . 1 . AOE 3 | . . 3 . Classes Destroyed 2 | . . 2 . Turret 2 | . . 2 . Swarmer 4 | . . 4 . Best Kill Streak 4 | . . 4 . Combat Bots Only 4 | . . 4 . Max Kills in Single Turn 3 | . . 3 . Gunslinging . | . . . . Exploded 3 | . . 3 . Melee . | . . . . Uniques/NPCs Destroyed . | . . . . Combat | -11 -10 -10 -8 -------- Run | Yrd Mat Sub Rec Hostile Shots Fired 150 | . . 106 44 Missed 56 | . . 45 11 Hits 94 | . . 61 33 Projectile 94 | . . 61 33 Critical Strikes 2 | . . . 2 Damage Taken 1248 | . . 546 702 Core 269 | . . 69 200 Absorbed by Shields . | . . . . Core Remaining (%) 100 | 100 . . . Volleys Fired 18 | . 2 14 2 Largest 2 | . 2 2 2 Hottest 70 | . 60 70 70 Shots Fired 31 | . 4 23 4 Gun 22 | . 4 18 . Cannon 9 | . . 5 4 Launcher . | . . . . Special . | . . . . Kinetic 20 | . 2 14 4 Thermal . | . . . . Explosive . | . . . . Electromagnetic 11 | . 2 9 . Robot Hit Streak 10 | . . 7 10 Robot Miss Streak 2 | . . 2 1 Penetration Max . | . . . . Secondary Targets . | . . . . Shots Hit Robots 17 | . . 14 3 Core Hits 11 | . . 9 2 Critical Kills . | . . . . Critical Parts Destroyed . | . . . . Critical Strikes . | . . . . Melee Attacks . | . . . . Impact . | . . . . Slashing . | . . . . Piercing . | . . . . Sneak Attacks . | . . . . Combat Hostiles . | . . . . Follow-up Attacks . | . . . . Damage Inflicted 470 | . . 377 93 Guns 207 | . . 207 . Cannons 137 | . . 44 93 Explosions 126 | . . 126 . Melee . | . . . . Ramming . | . . . . Kinetic 286 | . . 193 93 Thermal 126 | . . 126 . Explosive . | . . . . Electromagnetic 58 | . . 58 . Impact . | . . . . Slashing . | . . . . Piercing . | . . . . Highest Corruption . | . . . . Average Corruption . | . . . . Corruption Purged . | . . . . Corruption Blocked . | . . . . Overload Shots . | . . . . Overflow Damage 22 | . . 22 . Projectiles . | . . . . Explosions 22 | . . 22 . Melee . | . . . . Knockbacks 3 | . . 1 2 Impact . | . . . . Kinetic 3 | . . 1 2 Secondary . | . . . . Self-Inflicted Damage . | . . . . Shots . | . . . . Rammed . | . . . . Targets Rammed . | . . . . Kicked . | . . . . Crushed . | . . . . Highest Temperature 93 | . . 2 93 Average Temperature 34 | . . 2 37 Received Heat Transfer 680 | . . 234 446 Siege Activations . | . . . . Martial Activations . | . . . . Shielding Activations . | . . . . Robots Disrupted . | . . . . Combat Hostiles . | . . . . Robots Corrupted . | . . . . Combat Hostiles . | . . . . Parts Fried . | . . . . Impact Corruptions . | . . . . Robots Melted . | . . . . Combat Hostiles . | . . . . Parts Melted . | . . . . Heat Transferred 200 | . . 200 . Parts Sabotaged . | . . . . Parts Stolen . | . . . . Parts Stripped . | . . . . Power Chain Reactions 1 | . . 1 . Alert | -11 -10 -10 -8 ------- Run | Yrd Mat Sub Rec Maximum Alert Level . | . . . . Low Security (%) 100 | 100 100 . 100 Level 1 . | . . . . Level 2 . | . . . . Level 3 . | . . . . Level 4 . | . . . . Level 5 . | . . . . High Security . | . . . . Max Security . | . . . . Peak Influence 81 | . . . 81 Initial 81 | . . . 81 Average 15 | . . . 22 Influence Increases 283 | . 4 270 9 Destroy 0b10 Robot/C 120 | . . 120 . Successful Hack 13 | . 4 . 9 Lose Combat Pursuer 150 | . . 150 . Influence Decreases 283 | . 4 100 179 Entered New Map 89 | . . . 89 Time Decay 164 | . 4 70 90 Lost Part 30 | . . 30 . Squads Dispatched . | . . . . Investigation . | . . . . Extermination . | . . . . Reinforcement . | . . . . Assault . | . . . . Garrison . | . . . . Intercept . | . . . . Searches Triggered . | . . . . Construction Impeded . | . . . . Haulers Reinforced . | . . . . Active Scanning Responses . | . . . . Cargo Convoy Interrupts . | . . . . Stealth | -11 -10 -10 -8 --------- Run | Yrd Mat Sub Rec Distress Signals . | . . . . Communications Jammed . | . . . . Distress Signals . | . . . . Times Spotted 19 | . . 16 3 Peak Tracking Total 6 | . . 6 5 Tactical Retreats 4 | . . 4 . Traps | -11 -10 -10 -8 ------- Run | Yrd Mat Sub Rec Traps Triggered . | . . . . Indirectly . | . . . . Trap Hack Attempts . | . . . . Triggered . | . . . . Disarmed . | . . . . Reprogrammed . | . . . . Reused . | . . . . Traps Extracted . | . . . . Installed . | . . . . Triggered . | . . . . Machines | -11 -10 -10 -8 ---------- Run | Yrd Mat Sub Rec Machines Disabled 1 | . . 1 . Max in Single Turn 1 | . . 1 . Machines Repaired . | . . . . Machines Dismantled . | . . . . Machines Sabotaged . | . . . . Overloaded Fab Kills . | . . . . Hacking | -11 -10 -10 -8 --------- Run | Yrd Mat Sub Rec Machines Accessed 6 | . 1 . 5 Terminals 4 | . 1 . 3 Fabricators . | . . . . Repair Stations . | . . . . Recycling Units . | . . . . Scanalyzers . | . . . . Garrison Access . | . . . . Total Hacks 35 | . 3 . 32 Successful 32 | . 2 . 30 Failed 3 | . 1 . 2 Catastrophic 1 | . . . 1 Database Lockouts . | . . . . Manual . | . . . . Terminals 9 | . 3 . 6 Fabricators . | . . . . Repair Stations . | . . . . Recycling Units . | . . . . Scanalyzers . | . . . . Garrison Access . | . . . . Terminal Hacks 32 | . 2 . 30 Record 24 | . . . 24 Alert Level 2 | . 1 . 1 Locate Traps 1 | . 1 . . Dispatch Records 1 | . . . 1 Investigation Status 1 | . . . 1 Zone Layout 1 | . . . 1 Release Object 2 | . . . 2 Fabricator Hacks . | . . . . Repair Station Hacks . | . . . . Recycling Unit Hacks . | . . . . Scanalyzer . | . . . . Garrison Access Hacks . | . . . . Unauthorized Hacks . | . . . . Terminals . | . . . . Fabricators . | . . . . Repair Stations . | . . . . Recycling Units . | . . . . Scanalyzers . | . . . . Garrison Access . | . . . . Data Cores Recovered . | . . . . Used . | . . . . Hacking Detections 2 | . 1 . 1 Full Trace Events . | . . . . Feedback Events . | . . . . Feedback Blocked . | . . . . Robot Schematics Acquired . | . . . . Robots Built . | . . . . Authchips . | . . . . Time . | . . . . Total Robot Build Rating . | . . . . Part Schematics Acquired . | . . . . Parts Built . | . . . . Authchips . | . . . . Time . | . . . . Total Part Build Rating . | . . . . Part Studies Acquired . | . . . . Parts Repaired . | . . . . Time . | . . . . Parts Recycled . | . . . . Recycled Matter . | . . . . Retrieved Matter . | . . . . Retrieved Components . | . . . . Parts Scanalyzed . | . . . . Part Schematics Acquired . | . . . . Parts Damaged . | . . . . Bothacking | -11 -10 -10 -8 ------------ Run | Yrd Mat Sub Rec Used RIF Installer . | . . . . Robots Hacked . | . . . . Non-combat . | . . . . Combat . | . . . . Robot Hacks Applied . | . . . . Relay Couplers Released . | . . . . Fabnet Peak Effective % . | . . . . Robots Rewired . | . . . . Allies Hacked . | . . . . Hacks Repelled . | . . . . Allies | -11 -10 -10 -8 -------- Run | Yrd Mat Sub Rec Total Allies . | . . . . Largest Group . | . . . . Highest-Rated Group . | . . . . Highest-Rated Ally . | . . . . Total Orders . | . . . . Ally Attacks . | . . . . Total Damage . | . . . . Kills . | . . . . Allies Corrupted . | . . . . Allies Melted . | . . . . Intel | -11 -10 -10 -8 ------- Run | Yrd Mat Sub Rec Active Infowar (turns) . | . . . . Robot Analysis Total . | . . . . Derelict Logs Recovered . | . . . . Drone Launches . | . . . . Drone Recoveries . | . . . . Exploration | -11 -10 -10 -8 ------------- Run | Yrd Mat Sub Rec Turns Passed 846 | 61 109 300 376 Spaces Moved 594 | 47 84 184 279 Core 14 | 14 . . . Treads 68 | . . 37 31 Legs 512 | 33 84 147 248 Wheels . | . . . . Hover . | . . . . Flight . | . . . . Fastest Speed 50 | 50 120 120 120 Average Speed 123 | 99 120 128 124 Slowest Speed 190 | 120 120 160 190 Overloaded Moves . | . . . . Propulsion Burnouts . | . . . . Robots Hopped . | . . . . Potential Cave-ins . | . . . . Cave-ins Triggered . | . . . . Exploration Rate (%) 19 | 4 9 13 50 Regions Visited 3 Branch Regions 2 Pre-discovered Areas . | . . . . Known Exits Taken . | . . . . Unknown Exits Taken 3 | 1 1 1 . Scrap Searched . | . . . . Spaces Dug . | . . . . Terrain Destroyed 2 | . . 2 . Melee . | . . . . Projectile . | . . . . AOE 2 | . . 2 . Terrain Rammed . | . . . . Walls Destroyed . | . . . . Machines Disabled . | . . . . Actions | -11 -10 -10 -8 --------- Run | Yrd Mat Sub Rec Total 673 | 61 88 222 302 Wait 25 | . 3 14 8 Move 591 | 46 83 183 279 Hop . | . . . . Pick Up 14 | 7 . 3 4 Fast Attach 2 | 2 . . . Attach 12 | 5 . 1 6 Detach 1 | 1 . . . Swap 10 | . . 7 3 Drop . | . . . . Fire 18 | . 2 14 2 Melee . | . . . . Ram . | . . . . Kick . | . . . . Crush . | . . . . Escape Stasis . | . . . . Rewire . | . . . . Trap . | . . . . Miscellaneous . | . . . . Route ------- -11/Scrapyard -10/Materials -10/Subcaves (discovered 3 exits: [*Mat] / *Rec / [Scr]) -8/Recycling History --------- Turn | Location | Event 12 | -11/Scrapyard | Discovered new exit (range 15) 62 | -11/Scrapyard | Entered Materials 63 | -10/Materials | Met a group of wandering Federalists 152 | -10/Materials | Discovered new exit (range 8) 171 | -10/Materials | Entered Subcaves 172 | -10/Subcaves | Continued accompanying wandering Federalists (5) 172 | -10/Subcaves | Approached by a straggling Scientist 259 | -10/Subcaves | Shifting Twisted Machinery released Sub. Machine Gun 266 | -10/Subcaves | Shifting Twisted Machinery released Battle Cannon 316 | -10/Subcaves | Discovered new exit (range 9) 318 | -10/Subcaves | Build established: Mutant 340 | -10/Subcaves | Discovered new exit (range 14) 471 | -10/Subcaves | Entered Recycling 472 | -8/Recycling | Met a Zionite searching for Scraptown 772 | -8/Recycling | Scanned before Scraplab entrance 790 | -8/Recycling | Entered Scraplab 810 | -8/Recycling | Angered Scraplab inhabitants 811 | -8/Recycling | Found Prototype Device 816 | -8/Recycling | Core integrity fell below 50% 842 | -8/Recycling | Core integrity fell below 20% 847 | -8/Recycling | Destroyed by H2-5QH(j) with Overtuned Pulse Rifle Last Messages --------------- URGENT: Link to external system right away! 00811_ NA-ZRH(j): "Defend the Scraplab!" 00811_ Acquired Prototype Device. 00815_ Machine disabled. 00818_ Hpw. Tractor Beam destroyed. 00818_ Machine disabled. Prototype Device integrity failing. 00824_ Critical hit (Burn: +50). 00824_ Supplies damaged. 00828_ Lgt. Assault Rifle destroyed. 00828_ Critical hit (Burn: +50). Prototype Device integrity failing. 00832_ EM Pulse Gun destroyed. 00834_ NA-ZRH(j) knocked back. 00836_ Aluminum Leg destroyed. 00837_ Nuclear Core destroyed. 00837_ NA-ZRH(j) knocked back. 00838_ NA-ZRH(j) heat spikes uncontrollably. Prototype Device integrity failing. 00847_ VX-U1G(j) overheating. Map ----- +----------------------------------------------------+ | ? ?????# #?????????????? | | + ?????# #?????????????? | | # ?????# #?????????????? | | # ?????# #?????????????? | | # ?????# #?????????????? | | # #????####+####?????????????? | | # ######## #???????????????? | | + #???????????????? | | # ## #######?????????? | | # ### ### #?????????? | | # #?# ## #??###????? | | # #?# ## #### ##???? | | #?# + # #???? | | #?##### ##### #???? | | #?????# #???# #???? | | #?????# #???# #???? | | #?????######???# "???? | | #??????????#####+####? | | #########??????????#" c "#? | | ???????????????????#"& "#? | | ??????????????????#" j "#? | | ##?????????????????#"" X"#? | | ???????????????????#"& "#? | | ???????????????????#" "#? | | ???????????????????#"X "#? | | ???????????????????#" @###? | | ???????????????????# " j #"#? | | ???????????????????# """j #? | | ???????????????????##########? | | ?????????????????????????????? | | ?????????????????????????????? | | ?????????????????????????????? | | ?????????????????????????????? | | ?????????????????????????????? | | ?????????????????????????????? | | ?????????????????????????????? | | ?????????????????????????????? | | ?????????????????????????????? | | ?????????????????????????????? | | ?????????????????????????????? | | ?????????????????????????????? | | ?????????????????????????????? | | ?????????????????????????????? | | ?????????????????????????????? | | ?????????????????????????????? | | ?????????????????????????????? | | ?????????????????????????????? | | | | | | | +----------------------------------------------------+ Best States ------------- Heat Dissipation 25 Energy Generation 14 Energy Capacity 240 Matter Stores 281 Matter Capacity 300 Sight Range 16 Terrain Scan Density 10 Evasion (%) 55 Recoil Reduction 2 Item Schematics ----------------- None Robot Schematics ------------------ None Fabricated ------------ Nothing Repaired ---------- Nothing Studied --------- None Alien Tech Used ----------------- None Achievements -------------- Strength In Numbers You May Approach The Wall Challenges ------------ None Game ------ Seed ExpertProcessingCapacitor Manual? 0 Play Time 00:17:06 Cumulative 23.1 hours Start 2026.06.27 @ 22:23:28 End 2026.06.27 @ 22:38:02 Sessions 1 Manual Loads 0 Difficulty Rogue Special Mode None Game No. 31 Rogue 3 Adventurer 28 Explorer 0 Win Type - Total 0 Types 0/0/0/0/0/0/0/0/0/0 Lore% 13 Gallery% 20 Achievement% 15 Wizard Run 0 Options --------- Layout 1 ASCII 0 Keyboard 0 Movement Mouse Keybinds 0 Fullscreen 1 Font 24/Smallcaps Map View 50x35 Zoom Use 0% Tactical HUD 1 Map Filters NONE Filters NONE Steam 1 RUN: c8ea1c16-f203-4b78-8267-cd8a4f9b8b2d